Cogmind - Beta 13 @@@ ROGUE MODE // 2024.04.07 @ 01:47:39 Player: Carpathian Result: Destroyed by Y-45 Defender with Heavy Assault Rifle Performance ------------- Evolutions (1) 500 Regions Visited (3) 600 Robots Destroyed (24) 120 Value Destroyed (633) 633 Prototype IDs (0) 0 Alien Tech Used (0) 0 Bonus (0) 0 TOTAL SCORE: 1853 Bonus ------- None Cogmind --------- Core Integrity 0/400 Matter 98/300 Energy 100/100 System Corruption 2% Temperature Cool (0) Movement Core (200) Ox3 Location -9/Materials Parts ------- > --- POWER (1) -------- (None) > --- PROPULSION (2) --- (None) > --- UTILITY (4) ------ Medium Storage Unit > --- WEAPON (2) ------- (None) > --- INVENTORY (10) --- Light Treads Light Treads Aluminum Leg Aluminum Leg Peak State ------------ > --- POWER ------------ Light Nuclear Core > --- PROPULSION ------- Aluminum Leg Aluminum Leg > --- UTILITY ---------- Improved Heat Sink Medium Storage Unit Targeting Computer Light Armor Plating > --- WEAPON ----------- Light Assault Rifle Improved Light Cannon > --- INVENTORY -------- Light Treads Light Treads Aluminum Leg Aluminum Leg Assault Rifle [Rating: 14] Favorites ----------- Power Light Nuclear Core Engine Ion Engine Power Core Light Nuclear Core Propulsion Aluminum Leg Leg Aluminum Leg Utility Medium Storage Unit Device Improved Heat Sink Storage Medium Storage Unit Processor Targeting Computer Protection Light Armor Plating Weapon Light Assault Rifle Ballistic Gun Light Assault Rifle Ballistic Cannon Improved Light Cannon Launcher Grenade Launcher Build | -11 -10 -10 -9 ------- Run | Yrd Mat Min Mat Slots Evolved 2 | . . . 2 Power . | . . . . Propulsion . | . . . . Utility 2 | . . . 2 Weapon . | . . . . Parts Attached 24 | 6 10 2 6 Power 2 | 1 1 . . Engine 1 | 1 . . . Core 1 | . 1 . . Reactor . | . . . . Propulsion 4 | 2 . . 2 Treads . | . . . . Leg 4 | 2 . . 2 Wheel . | . . . . Hover . | . . . . Flight . | . . . . Utility 6 | 1 3 . 2 Device 2 | . 1 . 1 Storage 2 | 1 1 . . Processor 1 | . 1 . . Hackware . | . . . . Protection 1 | . . . 1 Artifact . | . . . . Weapon 12 | 2 6 2 2 Energy Gun . | . . . . Energy Cannon . | . . . . Ballistic Gun 8 | 2 4 1 1 Ballistic Cannon 1 | . . . 1 Launcher 3 | . 2 1 . Special Weapon . | . . . . Impact Weapon . | . . . . Slashing Weapon . | . . . . Piercing Weapon . | . . . . Special Melee Weapon . | . . . . Unidentified Prototypes . | . . . . Parts Lost 9 | . . . 9 Power 1 | . . . 1 Propulsion 2 | . . . 2 Utility 3 | . . . 3 Weapon 3 | . . . 3 Highest Loss Streak 5 | . . . 5 To Critical Strikes . | . . . . Average Slot Usage (%) 91 | . 92 100 88 Engine 5 | . 11 . . Core 6 | . 2 14 10 Leg 24 | . 28 28 20 Device 4 | . . . 9 Storage 12 | . 14 14 11 Processor 8 | . 7 14 8 Protection 3 | . . . 8 Ballistic Gun 22 | . 27 24 16 Ballistic Cannon 1 | . . . 2 Naked Turns . | . . . . Heaviest Build 24 | 13 19 20 24 Greatest Support 20 | 20 20 20 20 Greatest Overweight (x) 3 | . . . 3 Average Overweight (x) . | . . . 1 Largest Inventory Capacity 10 | 8 10 10 10 Average Capacity 9 | 6 8 10 10 Most Carried 7 | 4 7 5 5 Average Carried 4 | 1 4 4 3 Final Capacity 10 | 8 10 10 10 Final Carried 5 | 3 5 4 4 Class Distribution -------------------- 100% | Mutant Dominant Class ---------------- Mutant | -10/Materials Mutant | -10/Mines Mutant | -9/Materials Resources | -11 -10 -10 -9 ----------- Run | Yrd Mat Min Mat Matter Collected 427 | 175 112 86 54 Remotely . | . . . . Salvage Created 565 | . 340 86 139 Parts 48 | . 38 3 7 Haulers Intercepted . | . . . . Recyclers Shooed 1 | . . . 1 Parts Field Recycled . | . . . . Retrieved Matter . | . . . . Parts Self-Destructed . | . . . . Prevented . | . . . . Kills | -11 -10 -10 -9 ------- Run | Yrd Mat Min Mat Combat Hostiles Destroyed 19 | . 11 2 6 Melee 1 | . . . 1 Guns 7 | . 4 2 1 Cannons 3 | . . . 3 AOE 8 | . 7 . 1 Classes Destroyed 7 | . 5 . 2 Worker 2 | . 1 . 1 Builder 1 | . 1 . . Watcher 2 | . 2 . . Swarmer 6 | . 3 . 3 Grunt 11 | . 8 2 1 Brawler 1 | . . . 1 Sentry 1 | . . . 1 Best Kill Streak 10 | . 10 2 4 Combat Bots Only 6 | . 6 2 4 Max Kills in Single Turn 3 | . 3 1 2 Gunslinging . | . . . . Exploded 2 | . 2 . 1 Melee 1 | . . . 1 Uniques/NPCs Destroyed . | . . . . Combat | -11 -10 -10 -9 -------- Run | Yrd Mat Min Mat Hostile Shots Fired 151 | . 39 14 98 Missed 36 | . 12 . 24 Damage Taken 1658 | . 408 181 1069 Core 523 | . 74 42 407 Absorbed by Shields . | . . . . Core Remaining (%) 76 | 100 . 53 . Volleys Fired 56 | . 18 7 31 Largest 2 | . 2 2 2 Hottest 59 | . 50 50 59 Shots Fired 94 | . 36 8 50 Gun 67 | . 30 7 30 Cannon 20 | . . . 20 Launcher 7 | . 6 1 . Special . | . . . . Kinetic 87 | . 30 7 50 Thermal . | . . . . Explosive 7 | . 6 1 . Electromagnetic . | . . . . Robot Hit Streak 8 | . 8 4 8 Robot Miss Streak 4 | . 4 1 3 Penetration Max . | . . . . Secondary Targets . | . . . . Shots Hit Robots 63 | . 25 7 31 Core Hits 41 | . 27 4 10 Critical Kills . | . . . . Critical Parts Destroyed . | . . . . Critical Strikes . | . . . . Melee Attacks . | . . . . Impact . | . . . . Slashing . | . . . . Piercing . | . . . . Sneak Attacks . | . . . . Combat Hostiles . | . . . . Follow-up Attacks . | . . . . Damage Inflicted 1674 | . 634 147 893 Guns 476 | . 206 78 192 Cannons 195 | . . . 195 Explosions 991 | . 428 69 494 Melee . | . . . . Ramming 12 | . . . 12 Kinetic 671 | . 206 78 387 Thermal 494 | . . . 494 Explosive 497 | . 428 69 . Electromagnetic . | . . . . Impact . | . . . . Slashing . | . . . . Piercing . | . . . . Highest Corruption 2 | . . . 2 Average Corruption 2 | . . . 2 Corruption Purged . | . . . . Corruption Blocked . | . . . . Overload Shots . | . . . . Overflow Damage 242 | . . . 242 Projectiles . | . . . . Explosions 242 | . . . 242 Melee . | . . . . Knockbacks . | . . . . Impact . | . . . . Kinetic . | . . . . Secondary . | . . . . Self-Inflicted Damage 255 | . 69 . 186 Shots 4 | . 2 . 2 Rammed 2 | . . . 2 Targets Rammed 7 | . . . 7 Kicked 5 | . . . 5 Crushed . | . . . . Highest Temperature 34 | . 34 19 33 Average Temperature 11 | . 14 4 11 Received Heat Transfer 597 | . 186 123 288 Siege Activations . | . . . . Robots Corrupted . | . . . . Combat Hostiles . | . . . . Parts Fried . | . . . . Impact Corruptions . | . . . . Robots Melted . | . . . . Combat Hostiles . | . . . . Parts Melted . | . . . . Heat Transferred 350 | . . . 350 Parts Sabotaged . | . . . . Parts Stolen . | . . . . Parts Stripped . | . . . . Power Chain Reactions . | . . . . Alert | -11 -10 -10 -9 ------- Run | Yrd Mat Min Mat Peak Influence 319 | . 319 102 260 Initial 46 | . . 46 39 Average 74 | . 86 91 69 Maximum Alert Level 1 | . 1 . 1 Low Security (%) 91 | 100 84 100 97 Level 1 8 | . 15 . 2 Level 2 . | . . . . Level 3 . | . . . . Level 4 . | . . . . Level 5 . | . . . . High Security . | . . . . Max Security . | . . . . Squads Dispatched 1 | . 1 . . Investigation . | . . . . Extermination . | . . . . Reinforcement 1 | . 1 . . Assault . | . . . . Garrison . | . . . . Intercept . | . . . . Searches Triggered . | . . . . Construction Impeded . | . . . . Haulers Reinforced . | . . . . Active Scanning Responses . | . . . . Cargo Convoy Interrupts . | . . . . Stealth | -11 -10 -10 -9 --------- Run | Yrd Mat Min Mat Distress Signals 3 | . 1 . 2 Communications Jammed . | . . . . Distress Signals . | . . . . Times Spotted 32 | . 15 2 15 Peak Tracking Total 10 | . 8 2 10 Tactical Retreats 1 | . . . 1 Traps | -11 -10 -10 -9 ------- Run | Yrd Mat Min Mat Traps Triggered . | . . . . Indirectly . | . . . . Trap Hack Attempts . | . . . . Triggered . | . . . . Disarmed . | . . . . Reprogrammed . | . . . . Reused . | . . . . Traps Extracted . | . . . . Installed . | . . . . Triggered . | . . . . Machines | -11 -10 -10 -9 ---------- Run | Yrd Mat Min Mat Machines Disabled 4 | . . . 4 Max in Single Turn 3 | . . . 3 Machines Repaired . | . . . . Machines Dismantled . | . . . . Machines Sabotaged . | . . . . Overloaded Fab Kills . | . . . . Hacking | -11 -10 -10 -9 --------- Run | Yrd Mat Min Mat Machines Accessed 2 | . 1 . 1 Terminals 2 | . 1 . 1 Fabricators . | . . . . Repair Stations . | . . . . Recycling Units . | . . . . Scanalyzers . | . . . . Garrison Access . | . . . . Total Hacks 2 | . 1 . 1 Successful 2 | . 1 . 1 Failed . | . . . . Catastrophic . | . . . . Database Lockouts . | . . . . Manual . | . . . . Terminals 2 | . 1 . 1 Fabricators . | . . . . Repair Stations . | . . . . Recycling Units . | . . . . Scanalyzers . | . . . . Garrison Access . | . . . . Terminal Hacks 2 | . 1 . 1 Alert Level 1 | . 1 . . Transport Status 1 | . . . 1 Fabricator Hacks . | . . . . Repair Station Hacks . | . . . . Recycling Unit Hacks . | . . . . Scanalyzer . | . . . . Garrison Access Hacks . | . . . . Unauthorized Hacks . | . . . . Terminals . | . . . . Fabricators . | . . . . Repair Stations . | . . . . Recycling Units . | . . . . Scanalyzers . | . . . . Garrison Access . | . . . . Data Cores Recovered . | . . . . Used . | . . . . Hacking Detections 1 | . . . 1 Full Trace Events . | . . . . Feedback Events . | . . . . Feedback Blocked . | . . . . Robot Schematics Acquired . | . . . . Robots Built . | . . . . Authchips . | . . . . Time . | . . . . Total Robot Build Rating . | . . . . Part Schematics Acquired . | . . . . Parts Built . | . . . . Authchips . | . . . . Time . | . . . . Total Part Build Rating . | . . . . Parts Repaired . | . . . . Time . | . . . . Parts Recycled . | . . . . Recycled Matter . | . . . . Retrieved Matter . | . . . . Retrieved Components . | . . . . Parts Scanalyzed . | . . . . Part Schematics Acquired . | . . . . Parts Damaged . | . . . . Bothacking | -11 -10 -10 -9 ------------ Run | Yrd Mat Min Mat Used RIF Installer . | . . . . Robots Hacked . | . . . . Non-combat . | . . . . Combat . | . . . . Robot Hacks Applied . | . . . . Relay Couplers Released . | . . . . Fabnet Peak Effective % . | . . . . Robots Rewired . | . . . . Allies Hacked . | . . . . Hacks Repelled . | . . . . Allies | -11 -10 -10 -9 -------- Run | Yrd Mat Min Mat Total Allies . | . . . . Largest Group . | . . . . Highest-Rated Group . | . . . . Highest-Rated Ally . | . . . . Total Orders . | . . . . Ally Attacks . | . . . . Total Damage . | . . . . Kills . | . . . . Allies Corrupted . | . . . . Allies Melted . | . . . . Intel | -11 -10 -10 -9 ------- Run | Yrd Mat Min Mat Robot Analysis Total . | . . . . Derelict Logs Recovered . | . . . . Drone Launches . | . . . . Drone Recoveries . | . . . . Exploration | -11 -10 -10 -9 ------------- Run | Yrd Mat Min Mat Turns Passed 970 | 65 419 76 410 Spaces Moved 529 | 52 272 48 157 Core 24 | 17 . . 7 Treads . | . . . . Legs 505 | 35 272 48 150 Wheels . | . . . . Hover . | . . . . Flight . | . . . . Fastest Speed 50 | 50 120 120 120 Average Speed 137 | 97 120 120 187 Slowest Speed 200 | 120 120 120 200 Overloaded Moves . | . . . . Propulsion Burnouts . | . . . . Robots Hopped . | . . . . Cave-ins Triggered . | . . . . Exploration Rate (%) 21 | 3 57 11 13 Regions Visited 3 Branch Regions 1 Pre-discovered Areas . | . . . . Known Exits Taken . | . . . . Unknown Exits Taken 3 | 1 1 1 . Scrap Searched . | . . . . Spaces Dug . | . . . . Terrain Destroyed 78 | . 36 6 36 Melee . | . . . . Projectile . | . . . . AOE 78 | . 36 6 36 Terrain Rammed . | . . . . Walls Destroyed . | . . . . Machines Disabled . | . . . . Actions | -11 -10 -10 -9 --------- Run | Yrd Mat Min Mat Total 678 | 66 330 58 224 Wait 39 | . 20 1 18 Move 526 | 51 271 47 157 Hop . | . . . . Pick Up 20 | 9 7 . 4 Fast Attach . | . . . . Attach 10 | 6 1 . 3 Detach . | . . . . Swap 14 | . 9 2 3 Drop 6 | . 4 1 1 Fire 56 | . 18 7 31 Melee . | . . . . Ram 2 | . . . 2 Kick 5 | . . . 5 Crush . | . . . . Escape Stasis . | . . . . Rewire . | . . . . Trap . | . . . . Miscellaneous . | . . . . Route ------- -11/Scrapyard -10/Materials -10/Mines -9/Materials History --------- Turn | Location | Event 4 | -11/Scrapyard | Discovered new exit (range 16) 66 | -11/Scrapyard | Entered Materials 325 | -10/Materials | Build established: Mutant 446 | -10/Materials | Discovered new exit (range 12) 485 | -10/Materials | Entered Mines 546 | -10/Mines | Discovered new exit (range 13) 561 | -10/Mines | Entered Materials 561 | -9/Materials | Evolved 2 slots: Utility x2 949 | -9/Materials | Lost 5 parts (3u2w) 950 | -9/Materials | Core integrity fell below 50% 954 | -9/Materials | Core integrity fell below 20% 971 | -9/Materials | Destroyed by Y-45 Defender with Heavy Assault Rifle Last Messages --------------- 00951_ K-01 Serf collects debris. 00956_ Lgt. Assault Rifle destroyed. 00956_ Critical hit (Burn: +37). 00958_ U-05 Engineer lays Concrete. 00958_ U-05 Engineer builds a Wall. 00959_ K-01 Serf collects debris. 00959_ U-05 Engineer lays Concrete. 00961_ U-05 Engineer builds a Wall. 00961_ K-01 Serf collects debris. 00963_ U-05 Engineer builds a Wall. 00963_ Slammed into Y-45 Defender. 00965_ U-05 Engineer lays Concrete. 00965_ Slammed into Y-45 Defender. 00966_ K-01 Serf collects debris. 00966_ U-05 Engineer builds a Wall. 00967_ K-01 Serf collects debris. 00968_ U-05 Engineer builds a Wall. 00968_ Critical hit (Burn: +37). 00969_ K-01 Serf collects debris. 00971_ U-05 Engineer builds a Wall. Map ----- +----------------------------------------------------+ | ?????????????????????????????????????????????????? | | ?????????????????????????????????????????????????? | | ?????????????????????????????????????????????????? | | ?????????????????????????????????????????????????? | | ?????????????????????????????????????????????????? | | ?????????????????????????????????????????????????? | | ?????????????????????????????????????????????????? | | ?????????????????????????????????????????????????? | | ????????????????????????????? ??????? #???????? | | ????????????????????????????? #?????? #???????? | | ????????????????????????????? #????? #???????? | | ????????????????????????????# #????? #???!???? | | ????????????????????????????# ###### ##? ??? | | ???????????????????########## #%" ??? | | ???????????????????? % ???? | | ????????????????????? % ????? | | ?????????????????????? %""????? | | ??????????????????######;;; ##### %""????? | | ??????????????????# !;; """ #?? | | ??????????????????# * / ;;|% + ? | | ??????????????????# " Y k## !!% #?? | | ??????????????????# " %u*%= """????? | | ??????????????????# " ;###### """????? | | ??????????????????# % k; #??????????????? | | ??????????????##+##+#;;;;Y ;;##### ????? | | ??????????????# @ ????? | | ??????????????# ""?????? | | ??????????????# ########;; ;######## "??????? | | ??????????????# ???????##### ##????????? "??????? | | ??????????????# ????????????# #??????????????????? | | ?????????????? ?????????????# #??????????????????? | | ?????????????#??????????????# #?????????????? ??? | | ????????????????????????????# #?????????????" ??? | | ????????????????????????????# #?????????????" ??? | | ????????????????????????????# #???????????? ??? | | ????????????????????????????# #???????????? ##? | | ????????????????????????????# #?????????????" #? | | ????????????????????????????# #????????????? #? | | ????????????????????????????# #????????????? #? | | ????????????????????????????# #?????????????# +? | | ????????????????????????????# #?????????????# ## | | ????????????????????????????# #?????????????# # | | ?????????????????????######## #??????######## # | | ?????????????????????# # #??????# # | | ?????????????????????# "" # ######## # | | ?????????????????????# T" + # | | ?????????????????????# "" # #######+##### + | | ?????????????????????# # # # ## | | ?????????????????????# # + ! # #? | | ?????????????????????############ # #? | +----------------------------------------------------+ Best States ------------- Heat Dissipation 42 Energy Generation 14 Energy Capacity 250 Matter Stores 220 Matter Capacity 300 Sight Range 16 Terrain Scan Density 10 Armor Coverage 150 Evasion (%) 55 Targeting Accuracy 5 Item Schematics ----------------- None Robot Schematics ------------------ None Fabricated ------------ Nothing Alien Tech Used ----------------- None Achievements -------------- None Challenges ------------ None Game ------ Seed AdvancedMatterCalibrator Manual? 0 Play Time 00:07:47 Cumulative 16.7 hours Start 2024.04.07 @ 01:41:35 End 2024.04.07 @ 01:47:39 Sessions 1 Manual Loads 0 Difficulty Rogue Special Mode None Game No. 96 Rogue 96 Adventurer 0 Explorer 0 Win Type - Total 0 Types 0/0/0/0/0/0/0/0/0 Lore% 7 Gallery% 21 Achievement% 16 Wizard Run 0 Options --------- Layout 0 ASCII 0 Keyboard 0 Movement Arrows Keybinds 0 Fullscreen 2 Font 24/Cog Map View 76x50 Zoom Use 0% Tactical HUD 1 Map Filters NONE Filters NONE Steam 1 RUN: b4751725-1594-4a6a-9d3e-5102d70ecd92